Cogmind - Beta 9.4 @@@ ROGUE MODE // 2020.02.07 @ 22:09:39 // Winter2019/RPGLIKE Player: MorbOx Result: Destroyed by G-50 Soldier with Heavy Laser Performance ------------- Evolutions (4) 2000 Regions Visited (8) 1600 Robots Destroyed (119) 595 Value Destroyed (3746) 3746 Prototype IDs (4) 80 Alien Tech Used (0) 0 Bonus (1152) 1152 TOTAL SCORE: 9173 Bonus ------- High Alert Combat Kills 452 Entered Garrisons 200 Used RIF Installer 500 Cogmind --------- Core Integrity 0/2000 Matter 162/300 Energy 210/210 System Corruption 2% Temperature Cool (27) Movement Treading (160) Location -6/Factory Parts ------- > --- POWER (2) -------- Light Nuclear Core Light Angular Momentum Engine > --- PROPULSION (2) --- Light Treads Light Treads > --- UTILITY (5) ------ Improved Transmission Jammer Hacking Suite Relay Coupler [NC] (5) Relay Coupler [Brawler] (54) Relay Coupler [Hunter] (36) > --- WEAPON (3) ------- Heavy Assault Rifle Improved Datajack Remote Datajack > --- INVENTORY (0) ---- (None) Peak State ------------ > --- POWER ------------ Light Nuclear Core Light Angular Momentum Engine > --- PROPULSION ------- Light Treads Light Treads > --- UTILITY ---------- Improved Transmission Jammer Hacking Suite Relay Coupler [NC] Relay Coupler [Brawler] Relay Coupler [Hunter] > --- WEAPON ----------- Heavy Assault Rifle Improved Datajack Remote Datajack > --- INVENTORY -------- (None) [Rating: 36] Favorites ----------- Power Light Nuclear Core Engine Improved Ion Engine Power Core Light Nuclear Core Propulsion Light Treads Treads Light Treads Leg Aluminum Leg Hover Unit Aerolev Unit Flight Unit Flight Unit Utility Improved Heat Sink Device Improved Heat Sink Processor Launcher Guidance Computer Hackware Relay Coupler [Hunter] Weapon Remote Datajack Energy Gun Beam Rifle Energy Cannon Ion Cannon Ballistic Gun Heavy Assault Rifle Launcher Mini Grenade Launcher Special Weapon Remote Datajack Special Melee Weapon Improved Datajack Build | -11 -10 -10 -9 -8 -8 -8 -8 -6 ------- Run | Scr Mat Min Mat Mat Sto Gar Rec Fac Slots Evolved 8 | . . . 3 1 2 1 . 1 Power 1 | . . . . 1 . . . . Propulsion 1 | . . . 1 . . . . . Utility 4 | . . . 1 . 1 1 . 1 Weapon 2 | . . . 1 . 1 . . . Parts Attached 90 | 4 7 4 5 20 17 25 4 4 Power 21 | 1 2 . 1 6 4 6 . 1 Engine 13 | 1 2 . 1 3 3 2 . 1 Core 8 | . . . . 3 1 4 . . Reactor . | . . . . . . . . . Propulsion 19 | 1 1 . 1 3 4 8 . 1 Treads 10 | 1 1 . 1 3 . 3 . 1 Leg 3 | . . . . . . 3 . . Wheel . | . . . . . . . . . Hover 4 | . . . . . 4 . . . Flight 2 | . . . . . . 2 . . Utility 21 | . 1 1 2 6 4 5 1 1 Device 14 | . 1 . 1 5 4 2 . 1 Storage . | . . . . . . . . . Processor 3 | . . 1 1 1 . . . . Hackware 4 | . . . . . . 3 1 . Protection . | . . . . . . . . . Artifact . | . . . . . . . . . Weapon 29 | 2 3 3 1 5 5 6 3 1 Energy Gun 7 | . 1 . . 2 1 3 . . Energy Cannon 1 | . . . . 1 . . . . Ballistic Gun 10 | 2 2 . . . 3 3 . . Ballistic Cannon . | . . . . . . . . . Launcher 5 | . . 3 1 1 . . . . Special Weapon 4 | . . . . 1 1 . 1 1 Impact Weapon . | . . . . . . . . . Slashing Weapon . | . . . . . . . . . Piercing Weapon . | . . . . . . . . . Special Melee Weapon 2 | . . . . . . . 2 . Unidentified Prototypes 2 | . . . . . 2 . . . Parts Lost . | . . . . . . . . . Power . | . . . . . . . . . Propulsion . | . . . . . . . . . Utility . | . . . . . . . . . Weapon . | . . . . . . . . . Highest Loss Streak . | . . . . . . . . . Average Slot Usage (%) 89 | . 97 98 69 86 93 84 99 95 Engine 11 | . 24 25 13 11 15 5 9 8 Core 7 | . . . . 4 5 13 9 8 Treads 15 | . 25 25 13 23 . 12 18 15 Hover 3 | . . . . . 20 2 . . Device 12 | . 23 20 7 12 22 12 1 5 Processor 2 | . . 4 14 6 . . . . Hackware 8 | . . . . . . 5 34 33 Energy Gun 2 | . 7 . . 2 6 3 . . Ballistic Gun 9 | . 17 17 . . 10 13 10 8 Launcher 2 | . . 6 21 5 . . . . Special Weapon 7 | . . . . 11 10 9 8 6 Special Melee Weapon 1 | . . . . . . . 7 8 Naked Turns . | . . . . . . . . . Heaviest Build 36 | 5 11 11 10 29 36 36 20 20 Greatest Support 45 | 20 20 20 25 45 45 45 45 45 Greatest Overweight (x) 4 | . 3 . . . 2 4 . . Average Overweight (x) . | . . . . . . . . . Largest Inventory Capacity . | . . . . . . . . . Average Capacity . | . . . . . . . . . Most Carried . | . . . . . . . . . Average Carried . | . . . . . . . . . Final Capacity . | . . . . . . . . . Final Carried . | . . . . . . . . . Class Distribution -------------------- 51% | Mutant 47% | Scavenger-Mutant Dominant Class ---------------- Mutant | -10/Materials Mutant | -10/Mines Mutant | -9/Materials Mutant | -8/Materials Mutant | -8/Storage Scavenger-Mutant | -8/Garrison Scavenger-Mutant | -8/Recycling Scavenger-Mutant | -6/Factory Resources | -11 -10 -10 -9 -8 -8 -8 -8 -6 ----------- Run | Scr Mat Min Mat Mat Sto Gar Rec Fac Matter Collected 1932 | 284 71 196 46 427 260 587 5 56 Remotely . | . . . . . . . . . Salvage Created 3279 | 125 88 131 69 1091 741 782 . 252 Parts 225 | 9 3 18 11 68 38 58 . 20 Haulers Intercepted 4 | . . . . 3 1 . . . Recyclers Shooed 3 | . . . . . 3 . . . Parts Field Recycled . | . . . . . . . . . Retrieved Matter . | . . . . . . . . . Parts Self-Destructed . | . . . . . . . . . Prevented . | . . . . . . . . . Kills | -11 -10 -10 -9 -8 -8 -8 -8 -6 ------- Run | Scr Mat Min Mat Mat Sto Gar Rec Fac Combat Hostiles Destroyed 85 | . . 9 5 19 16 31 . 5 Guns 56 | . . 4 . 1 16 30 . 5 Cannons 13 | . . . . 13 . . . . AOE 13 | . . 5 5 3 . . . . Classes Destroyed 13 | 3 . 2 3 4 . . . 1 Worker 6 | 1 . 2 . 3 . . . . Builder 1 | . . . . 1 . . . . Tunneler 4 | 2 . 1 . . . . . 1 Hauler 4 | . . . . 3 1 . . . Recycler 10 | 1 1 1 . 4 3 . . . Operator 1 | . . . . 1 . . . . Watcher 8 | . . . 1 4 2 . . 1 Swarmer 37 | . . 8 2 . 6 17 . 4 Grunt 30 | . . . 2 13 5 10 . . Duelist 2 | . . . . 1 1 . . . Sentry 14 | . . . 1 5 4 4 . . Programmer 1 | . . . . . . . . 1 Assembled 1 | . . 1 . . . . . . Best Kill Streak 8 | 2 1 5 4 5 6 8 . 3 Combat Bots Only 8 | . . 3 4 4 6 8 . 2 Max Kills in Single Turn 5 | 1 1 3 3 5 2 2 . 1 Gunslinging 1 | . . . . . 1 1 . . Exploded 3 | . . 1 3 1 . . . . Melee . | . . . . . . . . . Uniques/NPCs Destroyed . | . . . . . . . . . Combat | -11 -10 -10 -9 -8 -8 -8 -8 -6 -------- Run | Scr Mat Min Mat Mat Sto Gar Rec Fac Damage Taken 5289 | . . 316 217 1404 505 2061 . 786 Core 4304 | . . 255 179 1169 409 1646 . 646 Absorbed by Shields 474 | . . . . . 141 333 . . Redirected to Core 3280 | . . 182 115 837 297 1362 . 487 Core Remaining (%) 63 | 100 . 65 61 . . . 27 . Volleys Fired 405 | 22 3 21 9 123 79 110 2 36 Largest 2 | 1 1 1 2 1 2 2 1 1 Hottest 79 | 20 23 30 60 60 79 79 30 30 Shots Fired 469 | 22 3 21 12 123 98 153 2 35 Gun 345 | 22 3 12 . 31 95 149 . 33 Cannon 77 | . . . . 77 . . . . Launcher 31 | . . 9 12 10 . . . . Special 16 | . . . . 5 3 4 2 2 Kinetic 192 | 22 3 12 . . 29 93 . 33 Thermal 199 | . . . . 77 66 56 . . Explosive 31 | . . 9 12 10 . . . . Electromagnetic 31 | . . . . 31 . . . . Robot Hit Streak 76 | 9 3 8 6 64 76 24 9 22 Robot Miss Streak 3 | 3 1 1 1 2 2 1 . 2 Penetration Max . | . . . . . . . . . Secondary Targets 10 | . . . . . 2 8 . . Max Gunslinging Chain 1 | . . . . . 1 1 . . Shots Hit Robots 398 | 17 2 13 6 111 83 121 12 33 Core Hits 193 | 5 1 21 15 55 34 49 . 13 Critical Hits 3 | . . 1 . 1 . . . 1 Critical Kills 1 | . . 1 . . . . . . Critical Parts Destroyed 2 | . . . . 1 . . . 1 Melee Attacks 15 | . . . . . . . 13 2 Impact . | . . . . . . . . . Slashing . | . . . . . . . . . Piercing . | . . . . . . . . . Sneak Attacks 7 | . . . . . . . 7 . Combat Hostiles . | . . . . . . . . . Follow-up Attacks . | . . . . . . . . . Damage Inflicted 8624 | 220 33 745 550 3238 1356 1952 . 530 Guns 4841 | 220 33 136 . 614 1356 1952 . 530 Cannons 1857 | . . . . 1857 . . . . Explosions 1926 | . . 609 550 767 . . . . Melee . | . . . . . . . . . Ramming . | . . . . . . . . . Kinetic 2392 | 220 33 136 . . 338 1135 . 530 Thermal 3692 | . . . . 1857 1018 817 . . Explosive 1926 | . . 609 550 767 . . . . Electromagnetic 614 | . . . . 614 . . . . Impact . | . . . . . . . . . Slashing . | . . . . . . . . . Piercing . | . . . . . . . . . Highest Corruption 2 | . . . . . . . . 2 Average Corruption 1 | . . . . . . . . 1 Corruption Purged . | . . . . . . . . . Effects 2 | . . . . . . . . 2 Heat Flow Errors 1 | . . . . . . . . 1 Weapon Failures 1 | . . . . . . . . 1 Overload Shots . | . . . . . . . . . Overflow Damage 104 | . . 24 . 80 . . . . Projectiles 61 | . . . . 61 . . . . Explosions 43 | . . 24 . 19 . . . . Melee . | . . . . . . . . . Knockbacks . | . . . . . . . . . Impact . | . . . . . . . . . Kinetic . | . . . . . . . . . Secondary . | . . . . . . . . . Self-Inflicted Damage 144 | . . 87 57 . . . . . Shots 7 | . . 3 4 . . . . . Rammed 1 | . . . . 1 . . . . Targets Rammed 1 | . . . . 1 . . . . Kicked . | . . . . . . . . . Crushed . | . . . . . . . . . Highest Temperature 458 | . . . 12 458 374 312 . 83 Average Temperature 85 | . . . 5 96 70 101 . 46 Received Heat Transfer 1782 | . . . 24 639 203 808 . 108 Effects 9 | . . . . 4 3 2 . . Shutdowns 2 | . . . . . 2 . . . Energy Bleed 1 | . . . . . 1 . . . Interference 3 | . . . . 2 . 1 . . Short Circuit 2 | . . . . 1 . 1 . . Damage (minor) 1 | . . . . 1 . . . . Siege Activations . | . . . . . . . . . Robots Corrupted 2 | . . . . 2 . . . . Combat Hostiles 2 | . . . . 2 . . . . Parts Fried 5 | . . . . 5 . . . . Impact Corruptions . | . . . . . . . . . Robots Melted 1 | . . . . . . 1 . . Combat Hostiles 1 | . . . . . . 1 . . Parts Melted 8 | . . . . . 5 3 . . Heat Transferred 6697 | . . . . 2664 2294 1739 . . Parts Sabotaged . | . . . . . . . . . Parts Stolen . | . . . . . . . . . Parts Stripped . | . . . . . . . . . Power Chain Reactions . | . . . . . . . . . Missiles Intercepted . | . . . . . . . . . Alert | -11 -10 -10 -9 -8 -8 -8 -8 -6 ------- Run | Scr Mat Min Mat Mat Sto Gar Rec Fac Peak Influence 1432 | 20 18 170 228 385 419 1432 704 1295 Average Influence 503 | 12 13 78 107 109 285 997 582 1135 Maximum Alert Level 4 | . . . 1 1 2 4 3 4 Low Security (%) 36 | 100 100 100 88 85 22 . . . Level 1 13 | . . . 11 14 59 6 . . Level 2 18 | . . . . . 17 16 77 . Level 3 12 | . . . . . . 31 22 2 Level 4 18 | . . . . . . 45 . 97 Level 5 . | . . . . . . . . . High Security . | . . . . . . . . . Max Security . | . . . . . . . . . Squads Dispatched 6 | . 1 . 1 2 . . . 2 Investigation . | . . . . . . . . . Extermination 1 | . . . . . . . . 1 Reinforcement 5 | . 1 . 1 2 . . . 1 Assault . | . . . . . . . . . Garrison . | . . . . . . . . . Intercept . | . . . . . . . . . Construction Impeded 1 | . . . 1 . . . . . Haulers Reinforced . | . . . . . . . . . Stealth | -11 -10 -10 -9 -8 -8 -8 -8 -6 --------- Run | Scr Mat Min Mat Mat Sto Gar Rec Fac Distress Signals 5 | . . . 1 4 . . . . Communications Jammed 1 | . . . . . . . . 1 Distress Signals . | . . . . . . . . . Times Spotted 205 | . 2 23 7 39 24 39 56 15 Peak Tracking Total 11 | . 1 11 4 5 4 11 7 4 Tactical Retreats 18 | . . 3 1 4 . 9 . 1 Traps | -11 -10 -10 -9 -8 -8 -8 -8 -6 ------- Run | Scr Mat Min Mat Mat Sto Gar Rec Fac Traps Triggered 3 | . 1 . . . . 1 . 1 Indirectly . | . . . . . . . . . Trap Hack Attempts . | . . . . . . . . . Triggered . | . . . . . . . . . Disarmed . | . . . . . . . . . Reprogrammed . | . . . . . . . . . Reused . | . . . . . . . . . Traps Extracted . | . . . . . . . . . Installed . | . . . . . . . . . Triggered . | . . . . . . . . . Machines | -11 -10 -10 -9 -8 -8 -8 -8 -6 ---------- Run | Scr Mat Min Mat Mat Sto Gar Rec Fac Machines Disabled 6 | . . 2 . . . 4 . . Max in Single Turn 1 | . . 1 . . . 1 . . Garrison Relay 4 | . . . . . . 4 . . Machines Sabotaged . | . . . . . . . . . Garrisons Compromised . | . . . . . . . . . Overloaded Fab Kills . | . . . . . . . . . Fab Network Shutdowns . | . . . . . . . . . Hacking | -11 -10 -10 -9 -8 -8 -8 -8 -6 --------- Run | Scr Mat Min Mat Mat Sto Gar Rec Fac Machines Accessed 26 | . 1 . 2 2 10 . 9 2 Terminals 18 | . 1 . 1 2 7 . 6 1 Fabricators . | . . . . . . . . . Repair Stations 2 | . . . 1 . 1 . . . Recycling Units 4 | . . . . . 1 . 3 . Scanalyzers . | . . . . . . . . . Garrison Access 2 | . . . . . 1 . . 1 Total Hacks 54 | . 1 . 5 5 24 . 17 2 Successful 39 | . . . 5 4 17 . 11 2 Failed 15 | . 1 . . 1 7 . 6 . Catastrophic . | . . . . . . . . . Database Lockouts . | . . . . . . . . . Manual 2 | . . . . . 2 . . . Terminals 36 | . 1 . 1 5 15 . 13 1 Fabricators . | . . . . . . . . . Repair Stations 7 | . . . 4 . 3 . . . Recycling Units 9 | . . . . . 5 . 4 . Scanalyzers . | . . . . . . . . . Garrison Access 2 | . . . . . 1 . . 1 Terminal Hacks 24 | . . . 1 4 11 . 7 1 Record 16 | . . . 1 3 8 . 3 1 Prototype ID Bank 1 | . . . . . 1 . . . Open Door 1 | . . . . . 1 . . . Emergency Access Points 1 | . . . . 1 . . . . Alert Level 2 | . . . . . . . 2 . Maintenance Status 1 | . . . . . . . 1 . Extermination Status 1 | . . . . . . . 1 . Recall Investigation 1 | . . . . . 1 . . . Fabricator Hacks . | . . . . . . . . . Repair Station Hacks 6 | . . . 4 . 2 . . . Scan Component 3 | . . . 2 . 1 . . . Repair 3 | . . . 2 . 1 . . . Recycling Unit Hacks 7 | . . . . . 3 . 4 . Process 3 | . . . . . 1 . 2 . Report Inventory 4 | . . . . . 2 . 2 . Scanalyzer . | . . . . . . . . . Garrison Access Hacks 2 | . . . . . 1 . . 1 Unlock Access 1 | . . . . . 1 . . . Coupler Status 1 | . . . . . . . . 1 Unauthorized Hacks . | . . . . . . . . . Terminals . | . . . . . . . . . Fabricators . | . . . . . . . . . Repair Stations . | . . . . . . . . . Recycling Units . | . . . . . . . . . Scanalyzers . | . . . . . . . . . Garrison Access . | . . . . . . . . . Data Cores Recovered . | . . . . . . . . . Used . | . . . . . . . . . Hacking Detections 12 | . . . 1 1 6 . 3 1 Full Trace Events . | . . . . . . . . . Feedback Events . | . . . . . . . . . Feedback Blocked . | . . . . . . . . . Robot Schematics Acquired . | . . . . . . . . . Robots Built . | . . . . . . . . . Matter . | . . . . . . . . . Time . | . . . . . . . . . Total Robot Build Rating . | . . . . . . . . . Part Schematics Acquired . | . . . . . . . . . Parts Built . | . . . . . . . . . Matter . | . . . . . . . . . Time . | . . . . . . . . . Total Part Build Rating . | . . . . . . . . . Parts Repaired 3 | . . . 2 . 1 . . . Time 102 | . . . 58 . 44 . . . Parts Recycled . | . . . . . . . . . Recycled Matter 37 | . . . . . 24 . 13 . Retrieved Matter . | . . . . . . . . . Retrieved Components . | . . . . . . . . . Parts Scanalyzed . | . . . . . . . . . Part Schematics Acquired . | . . . . . . . . . Parts Damaged . | . . . . . . . . . Bothacking | -11 -10 -10 -9 -8 -8 -8 -8 -6 ------------ Run | Scr Mat Min Mat Mat Sto Gar Rec Fac Used RIF Installer 1 | . . . . . . 1 . . Robots Hacked 6 | . . . . 2 . . 3 1 Non-combat 6 | . . . . 2 . . 3 1 Combat . | . . . . . . . . . Robot Hacks Applied 12 | . . . . 2 . . 7 3 parse_system 1 | . . . . 1 . . . . generate_anomaly 1 | . . . . . . . 1 . generate_echo 1 | . . . . . . . 1 . ignore_repairs 1 | . . . . . . . 1 . check_alert 1 | . . . . 1 . . . . mark_security 1 | . . . . . . . . 1 link_fov 1 | . . . . . . . 1 . overload_power 1 | . . . . . . . 1 . streamctrl_low 2 | . . . . . . . 2 . streamctrl_high 2 | . . . . . . . . 2 Relay Couplers Released 6 | . . . . . . 6 . . Machine Destruction 6 | . . . . . . 6 . . Attached 3 | . . . . . . 3 . . Robots Rewired . | . . . . . . . . . Allies Hacked . | . . . . . . . . . Hacks Repelled . | . . . . . . . . . Allies | -11 -10 -10 -9 -8 -8 -8 -8 -6 -------- Run | Scr Mat Min Mat Mat Sto Gar Rec Fac Total Allies 3 | . . . . . . . 2 1 Largest Group 1 | . . . . . . . 1 1 Highest-Rated Group 17 | . . . . . . . 10 17 Highest-Rated Ally 17 | . . . . . . . 10 17 Total Orders . | . . . . . . . . . Ally Attacks . | . . . . . . . . . Total Damage . | . . . . . . . . . Kills . | . . . . . . . . . Allies Corrupted . | . . . . . . . . . Allies Melted . | . . . . . . . . . Intel | -11 -10 -10 -9 -8 -8 -8 -8 -6 ------- Run | Scr Mat Min Mat Mat Sto Gar Rec Fac Robot Analysis Total . | . . . . . . . . . Derelict Logs Recovered 1 | . . 1 . . . . . . Drone Launches 4 | . . . . . 4 . . . Drone Recoveries . | . . . . . . . . . Exploration | -11 -10 -10 -9 -8 -8 -8 -8 -6 ------------- Run | Scr Mat Min Mat Mat Sto Gar Rec Fac Turns Passed 7456 | 124 285 660 480 1171 1138 2083 1089 426 Spaces Moved 4221 | 55 169 372 236 491 899 1134 656 209 Core 21 | 12 5 . . . 2 2 . . Treads 2974 | 43 164 372 236 491 22 781 656 209 Legs 162 | . . . . . . 162 . . Wheels . | . . . . . . . . . Hover 1012 | . . . . . 875 137 . . Flight 52 | . . . . . . 52 . . Fastest Speed 46 | 50 50 160 160 160 46 106 160 160 Average Speed 138 | 136 158 160 160 160 77 147 160 160 Slowest Speed 250 | 160 200 160 160 160 160 250 160 160 Overloaded Moves . | . . . . . . . . . Propulsion Burnouts . | . . . . . . . . . Robots Hopped . | . . . . . . . . . Cave-ins Triggered . | . . . . . . . . . Exploration Rate (%) 44 | 4 21 77 20 33 79 74 90 5 Regions Visited 8 Branch Regions 3 Pre-discovered Areas . | . . . . . . . . . Known Exits Taken 1 | . . . . . 1 . . . Unknown Exits Taken 6 | 1 1 1 1 1 . . 1 . Scrap Searched 2 | . . 2 . . . . . . Spaces Dug . | . . . . . . . . . Terrain Destroyed 212 | . . 60 79 73 . . . . Melee . | . . . . . . . . . Projectile 4 | . . . . 4 . . . . AOE 208 | . . 60 79 69 . . . . Actions | -11 -10 -10 -9 -8 -8 -8 -8 -6 --------- Run | Scr Mat Min Mat Mat Sto Gar Rec Fac Total 5350 | 81 181 416 325 756 1242 1397 688 264 Wait 435 | . . 14 74 70 196 60 10 11 Move 4212 | 54 168 371 235 490 898 1132 655 209 Hop . | . . . . . . . . . Pick Up . | . . . . . . . . . Fast Attach 82 | 4 7 4 5 15 15 25 4 3 Attach . | . . . . . . . . . Detach . | . . . . . . . . . Swap 11 | . . . . 5 2 3 . 1 Drop 71 | 1 3 4 2 17 14 24 4 2 Fire 405 | 22 3 21 9 123 79 110 2 36 Melee 15 | . . . . . . . 13 2 Ram . | . . . . . . . . . Kick . | . . . . . . . . . Crush 1 | . . . . 1 . . . . Escape Stasis 13 | . . . . . . 13 . . Rewire 1 | . . . . . . 1 . . Trap . | . . . . . . . . . Miscellaneous 104 | . . 2 . 35 38 29 . . Route ------- -11/Scrapyard -10/Materials -10/Mines -9/Materials -8/Materials -8/Storage -8/Garrison (discovered 3 exits: *Rec x3) -8/Recycling -6/Factory History --------- Turn | Location | Event 6 | -11/Scrapyard | Discovered new exit (range 16) 125 | -11/Scrapyard | Entered Materials 301 | -10/Materials | Build established: Mutant 372 | -10/Materials | Discovered new exit (range 15) 410 | -10/Materials | Entered Mines 427 | -10/Mines | Assembled infested the area 432 | -10/Mines | Assisted by a Guerilla fighting off Assembled 798 | -10/Mines | Learned Materials terminal intel 1028 | -10/Mines | Reached level 2 1046 | -10/Mines | Discovered new exit (range 14) 1070 | -10/Mines | Entered Materials 1070 | -9/Materials | Upgraded with Propulsion slot (x1) 1071 | -9/Materials | Loaded intel: 12 terminal locations 1072 | -9/Materials | Reached level 3 1075 | -9/Materials | Upgraded with Utility slot (x1) 1075 | -9/Materials | Upgraded with Weapon slot (x1) 1239 | -9/Materials | Repaired Imp. Ion Engine 1267 | -9/Materials | Repaired Lgt. Treads 1517 | -9/Materials | Discovered new exit (range 5) 1550 | -9/Materials | Entered another Materials area 1552 | -8/Materials | Reached level 4 2088 | -8/Materials | Core integrity fell below 50% 2152 | -8/Materials | Reached level 5 2286 | -8/Materials | Upgraded with Power slot (x1) 2668 | -8/Materials | Reached level 6 2690 | -8/Materials | Discovered new exit (range 12) 2721 | -8/Materials | Entered Storage 3052 | -8/Storage | Reached level 7 3068 | -8/Storage | Upgraded with Weapon slot (x1) 3425 | -8/Storage | Reached level 8 3428 | -8/Storage | Upgraded with Utility slot (x1) 3482 | -8/Storage | Repaired Remote Datajack 3612 | -8/Storage | Identified exit to Garrison 3859 | -8/Storage | Entered Garrison 3859 | -8/Garrison | Accompanied by 4 allies 3900 | -8/Garrison | Triggered checkpoint 3926 | -8/Garrison | Triggered checkpoint 3929 | -8/Garrison | Triggered checkpoint 3948 | -8/Garrison | Garrison Relay disabled 3948 | -8/Garrison | Reached level 9 4026 | -8/Garrison | Triggered checkpoint 4118 | -8/Garrison | Destroyed 8 combat bots 4384 | -8/Garrison | Core integrity fell below 20% 4420 | -8/Garrison | Build established: Scavenger-Mutant 4442 | -8/Garrison | Triggered checkpoint 4520 | -8/Garrison | Reached level 10 4586 | -8/Garrison | Garrison Relay disabled 4660 | -8/Garrison | Discovered new exit (range 14) 4953 | -8/Garrison | Discovered new exit (range 14) 4996 | -8/Garrison | Triggered checkpoint 5039 | -8/Garrison | Garrison Relay disabled 5131 | -8/Garrison | Installed Relay Interface Framework 5302 | -8/Garrison | Discovered new exit (range 13) 5357 | -8/Garrison | Reached level 11 5406 | -8/Garrison | Triggered checkpoint 5425 | -8/Garrison | Garrison Relay disabled 5495 | -8/Garrison | Upgraded with Utility slot (x1) 5574 | -8/Garrison | Triggered checkpoint 5942 | -8/Garrison | Entered Recycling 5991 | -8/Recycling | Spotter reported a threat 5991 | -8/Recycling | Spotter reported a threat 5991 | -8/Recycling | Spotter reported a threat 5992 | -8/Recycling | Spotter reported a threat 6033 | -8/Recycling | Spotter reported a threat 6086 | -8/Recycling | Spotter reported a threat 6101 | -8/Recycling | Spotter reported a threat 6102 | -8/Recycling | Spotter reported a threat 6115 | -8/Recycling | Spotter reported a threat 6149 | -8/Recycling | Spotter reported a threat 6185 | -8/Recycling | Spotter reported a threat 6192 | -8/Recycling | Spotter reported a threat 6195 | -8/Recycling | Spotter reported a threat 6200 | -8/Recycling | Spotter reported a threat 6248 | -8/Recycling | Spotter reported a threat 6251 | -8/Recycling | Spotter reported a threat 6259 | -8/Recycling | Spotter reported a threat 6288 | -8/Recycling | Spotter reported a threat 6300 | -8/Recycling | Spotter reported a threat 6317 | -8/Recycling | Spotter reported a threat 6322 | -8/Recycling | Spotter reported a threat 6341 | -8/Recycling | Spotter reported a threat 6353 | -8/Recycling | Spotter reported a threat 6400 | -8/Recycling | Spotter reported a threat 6406 | -8/Recycling | Spotter reported a threat 6412 | -8/Recycling | Spotter reported a threat 6423 | -8/Recycling | Spotter reported a threat 6466 | -8/Recycling | Spotter reported a threat 6487 | -8/Recycling | Spotter reported a threat 6487 | -8/Recycling | Spotter reported a threat 6488 | -8/Recycling | Spotter reported a threat 6490 | -8/Recycling | Spotter reported a threat 6503 | -8/Recycling | Spotter reported a threat 6514 | -8/Recycling | Spotter reported a threat 6519 | -8/Recycling | Spotter reported a threat 6541 | -8/Recycling | Spotter reported a threat 6556 | -8/Recycling | Spotter reported a threat 6621 | -8/Recycling | Spotter reported a threat 6621 | -8/Recycling | Spotter reported a threat 6629 | -8/Recycling | Spotter reported a threat 6633 | -8/Recycling | Spotter reported a threat 6651 | -8/Recycling | Spotter reported a threat 6651 | -8/Recycling | Spotter reported a threat 6660 | -8/Recycling | Spotter reported a threat 6682 | -8/Recycling | Spotter reported a threat 6704 | -8/Recycling | Spotter reported a threat 6711 | -8/Recycling | Spotter reported a threat 6713 | -8/Recycling | Spotter reported a threat 6727 | -8/Recycling | Spotter reported a threat 6732 | -8/Recycling | Spotter reported a threat 6735 | -8/Recycling | Spotter reported a threat 6757 | -8/Recycling | Spotter reported a threat 6764 | -8/Recycling | Spotter reported a threat 6766 | -8/Recycling | Spotter reported a threat 6768 | -8/Recycling | Spotter reported a threat 6781 | -8/Recycling | Spotter reported a threat 6817 | -8/Recycling | Spotter reported a threat 6898 | -8/Recycling | Spotter reported a threat 6928 | -8/Recycling | Spotter reported a threat 6974 | -8/Recycling | Spotter reported a threat 6974 | -8/Recycling | Spotter reported a threat 6975 | -8/Recycling | Spotter reported a threat 6983 | -8/Recycling | Spotter reported a threat 6986 | -8/Recycling | Spotter reported a threat 6991 | -8/Recycling | Spotter reported a threat 7002 | -8/Recycling | Discovered new exit (range 16) 7007 | -8/Recycling | Spotter reported a threat 7027 | -8/Recycling | Spotter reported a threat 7031 | -8/Recycling | Entered Factory 7032 | -6/Factory | Core integrity fell below 50% 7033 | -6/Factory | Reached level 12 7033 | -6/Factory | Upgraded with Utility slot (x1) 7373 | -6/Factory | Reached level 13 7406 | -6/Factory | Core integrity fell below 20% 7457 | -6/Factory | Destroyed by G-50 Soldier with Heavy Laser Last Messages --------------- 07375_ Dropped Remote Datajack. 07378_ R-10 Processor collects Imp. Hover Unit. 07383_ R-10 Processor collects Visual Processing Unit. 07387_ R-10 Processor collects Remote Datajack. 07390_ U-05 Engineer lays Concrete. 07394_ T-07 Excavator destroyed. 07396_ S-27 Virus destroyed. 07402_ System corrupted: Hvy. Assault Rifle jammed. 07412_ S-27 Virus suffers critical hit. 07412_ Destroyed VTOL Module. 07420_ S-27 Virus destroyed. 07428_ O-24 Administrator uses terminal to summon reinforcements. 07428_ ALERT: Hostiles spotted, dispatching reinforcements to Terminal F001. 07428_ O-24 Administrator locks terminal. 07436_ Acquired 56 matter. 07439_ Acquired Remote Datajack. 07442_ Dropped Imp. Ion Engine. 07457_ U-05 Engineer lays Concrete. [Achievement: 5k Club] Map ----- +----------------------------------------------------+ | ?????????????????????????????????????????????????? | | ?????????????????????????????????????????????????? | | ?????????????????????????????????????????????????? | | ?????????????????????????????????????????????????? | | ?????????????????????????????????????????????????? | | ?????????????????????????????????????????????????? | | ?????????????????????????????????????????????????? | | ?????????????????????????????????????????????????? | | ##########???????????????????????????????????????? | | #???????????????? ????????????????????? | | """"" #???????????????? "???????????????????? | | """"" #???????????????? "???????????????????? | | """"" #???????????????? "???????????????????? | | """"" #???????????????? ???????????????????? | | #???????????????? ""???#??????????????? | | #???????????????? """ ???????????????? | | #???????????????# ^ """ ???????????????? | | #???????????????# #??????????????? | | #?????????????? # #??????????????? | | #????????????[ # ^ #??????????????? | | #??????????? ??# "" #??????????????? | | ####################+#####^ "" #######????????? | | = "T ???????? | | % !!*"" o ??????? | | g %[|"" = ??????? | | g @ !=%*% s ??????? | | g%= = u![ % [%= s ??????? | | ##########/######+###################?????????? | | #?????# #??????????????????????????????? | | " #?????# #??????????????????????????????? | | " ####### #??????????????????????????????? | | + #??????????????????????????????? | | ####### [ #??????????????????????????????? | | #?????# #??????????????????????????????? | | ####?????# ! #??????????????????????????????? | | ?????????# #??????????????????????????????? | | ?????????# #??????????????????????????????? | | ?????????##########??????????????????????????????? | | ?????????????????????????????????????????????????? | | ?????????????????????????????????????????????????? | | ?????????????????????????????????????????????????? | | ?????????????????????????????????????????????????? | | ?????????????????????????????????????????????????? | | ?????????????????????????????????????????????????? | | ?????????????????????????????????????????????????? | | ?????????????????????????????????????????????????? | | ?????????????????????????????????????????????????? | | ?????????????????????????????????????????????????? | | ?????????????????????????????????????????????????? | | ?????????????????????????????????????????????????? | +----------------------------------------------------+ Best States ------------- Heat Dissipation 57 Energy Generation 27 Energy Capacity 325 Matter Stores 300 Matter Capacity 300 Sight Range 17 Robot Scan Range 13 Terrain Scan Density 10 Jamming Range 12 Evasion (%) 55 Launcher Accuracy 20 Recoil Reduction 2 Particle Charging 15 Offensive Hacking 20 Defensive Hacking 10 Item Schematics ----------------- None Robot Schematics ------------------ None Fabricated ------------ Nothing Alien Tech Used ----------------- None Achievements -------------- 5k Club Slippery One \\IAMDERELICT Challenges ------------ None RPGLIKE | -11 -10 -10 -9 -8 -8 -8 -8 -6 --------- Run | Scr Mat Min Mat Mat Sto Gar Rec Fac Levels Raised 12 | . . 1 1 3 2 3 . 2 XP Earned 21609 | 3000 . 1600 2135 4045 3085 4883 699 2162 XP Spent 20915 | 3000 . . 2980 3020 4485 4150 . 3280 Upgrades 62 | 5 . . 13 6 13 17 . 8 Power Slot 1 | . . . . 1 . . . . Propulsion Slot 1 | . . . 1 . . . . . Utility Slot 4 | . . . 1 . 1 1 . 1 Weapon Slot 2 | . . . 1 . 1 . . . Core Integrity 28 | . . . 8 2 4 12 . 2 Heat Dissipation 3 | . . . . . . 3 . . Mass Support 1 | . . . 1 . . . . . Sight Range 1 | . . . . . . . . 1 Sensor Range 3 | . . . . . 2 . . 1 Ranged Accuracy 8 | 5 . . 1 2 . . . . Hack Attack % 2 | . . . . . . 1 . 1 Hack Defense % 2 | . . . . . . . . 2 KI Damage % 2 | . . . . . 2 . . . TH Damage % 3 | . . . . . 3 . . . EX Damage % 1 | . . . . 1 . . . . Protomatter Created 1101 | . . 16 3 492 278 312 . . Integrity Restored 2289 | . . 48 . 807 834 600 . . Core 2289 | . . 48 . 807 834 600 . . Protomatter Decayed 367 | . . 71 . 184 . 112 . . Game ------ Seed EtherialThermalTorch Manual? 0 Play Time 01:12:24 Cumulative 12.5 hours Start 2020.02.07 @ 21:01:49 End 2020.02.07 @ 22:09:39 Sessions 1 Manual Loads 0 Difficulty Rogue Special Mode Winter2019/RPGLIKE Game No. 28 Rogue 28 Adventurer 0 Explorer 0 Win Type - Total 0 Types 0/0/0/0/0/0/0 Lore% 16 Gallery% 15 Achievement% 13 Wizard Run 0 Options --------- ASCII 0 Keyboard 0 Movement Arrows Keybinds 0 Fullscreen 2 Font 18/SmallcapsGlow Map View 76x50 Tactical HUD 1 Map Filters NONE Filters NONE Steam 1 RUN: ddb14e6d-fe99-4562-af5f-26eab6abfa3c